[Event "New Zealand Rapid Championship"]
[Site "Wellington"]
[Date "2023.01.12"]
[Round "9.9"]
[White "Parfene, Horatiu"]
[Black "Winter, Ryan"]
[Result "0-1"]
[TimeControl "25+5"]
[WhiteFideId "1208438"]
[BlackFideId "4306295"]
[WhiteElo "2085"]
[BlackElo "2117"]

1. Nf3 {[%clk 00:25:08]} {[%emt 00:00:02]} d5 {[%clk 00:25:06]} {[%emt
00:00:04]} 2. g3 {[%clk 00:25:09]} {[%emt 00:00:04]} c6 {[%clk 00:24:45]}
{[%emt 00:00:27]} 3. Bg2 {[%clk 00:25:12]} Bg4 {[%clk 00:24:45]} {[%emt
00:00:05]} 4. O-O {[%clk 00:25:08]} {[%emt 00:00:09]} Nd7 {[%clk 00:24:40]}
{[%emt 00:00:10]} 5. d3 {[%clk 00:25:02]} {[%emt 00:00:11]} e5 {[%clk
00:24:37]} {[%emt 00:00:08]} 6. Nc3 {[%clk 00:23:36]} {[%emt 00:01:32]} Ngf6
{[%clk 00:23:12]} {[%emt 00:01:30]} 7. e4 {[%clk 00:20:08]} {[%emt 00:03:33]}
dxe4 {[%clk 00:20:20]} {[%emt 00:02:56]} 8. Nxe4 {[%clk 00:19:47]} {[%emt
00:00:26]} Be7 {[%clk 00:19:57]} {[%emt 00:00:29]} 9. h3 {[%clk 00:19:19]}
{[%emt 00:00:32]} Bxf3 {[%clk 00:19:12]} {[%emt 00:00:50]} 10. Bxf3 {[%clk
00:18:56]} {[%emt 00:00:28]} O-O {[%clk 00:18:40]} {[%emt 00:00:38]} 11. Be3
{[%clk 00:16:05]} {[%emt 00:02:56]} Re8 {[%clk 00:17:05]} {[%emt 00:01:39]} 12.
c3 {[%clk 00:15:43]} {[%emt 00:00:27]} Qc7 {[%clk 00:16:13]} {[%emt 00:00:57]}
13. a4 {[%clk 00:14:53]} {[%emt 00:00:55]} a5 {[%clk 00:15:40]} {[%emt
00:00:39]} 14. Qb3 {[%clk 00:14:52]} {[%emt 00:00:06]} Nxe4 {[%clk 00:14:56]}
{[%emt 00:00:48]} 15. Bxe4 {[%clk 00:14:44]} {[%emt 00:00:13]} Bc5 {[%clk
00:14:52]} {[%emt 00:00:09]} 16. Qc4 {[%clk 00:14:02]} {[%emt 00:00:48]} Bxe3
{[%clk 00:14:23]} {[%emt 00:00:33]} 17. fxe3 {[%clk 00:14:06]} {[%emt
00:00:02]} Re7 {[%clk 00:14:12]} {[%emt 00:00:15]} 18. Bxh7+ {[%clk 00:13:05]}
{[%emt 00:01:06]} Kf8 {[%clk 00:14:01]} {[%emt 00:00:17]} 19. Qh4 {[%clk
00:11:40]} {[%emt 00:01:30]} Re6 {[%clk 00:11:23]} {[%emt 00:02:43]} 20. Bg6
{[%clk 00:08:59]} {[%emt 00:02:46]} Rxg6 {[%clk 00:10:52]} {[%emt 00:00:37]} 21.
Qh8+ {[%clk 00:08:55]} {[%emt 00:00:08]} Ke7 {[%clk 00:10:56]} {[%emt
00:00:02]} 22. Qxa8 {[%clk 00:08:58]} {[%emt 00:00:02]} Rxg3+ {[%clk 00:10:20]}
{[%emt 00:00:40]} 23. Kf2 {[%clk 00:07:08]} {[%emt 00:01:56]} Rxh3 {[%clk
00:09:45]} {[%emt 00:00:40]} 24. Rh1 {[%clk 00:06:57]} {[%emt 00:00:16]} Rxh1
{[%clk 00:07:07]} {[%emt 00:02:43]} 25. Rxh1 {[%clk 00:07:01]} Nc5 {[%clk
00:05:53]} {[%emt 00:01:21]} 26. Rh8 {[%clk 00:04:32]} {[%emt 00:02:34]} Qb6
{[%clk 00:03:46]} {[%emt 00:02:12]} 27. Re8+ {[%clk 00:04:17]} {[%emt
00:00:19]} Kf6 {[%clk 00:03:48]} {[%emt 00:00:03]} 28. Qd8+ {[%clk 00:04:20]}
{[%emt 00:00:02]} Qxd8 {[%clk 00:03:52]} {[%emt 00:00:02]} 29. Rxd8 {[%clk
00:04:24]} {[%emt 00:00:01]} Nxa4 {[%clk 00:03:52]} {[%emt 00:00:05]} 30. Ra8
{[%clk 00:03:23]} {[%emt 00:01:06]} Nxb2 {[%emt 00:00:23]} 31. Ke2 {[%clk
00:03:27]} Na4 {[%clk 00:03:20]} {[%emt 00:00:20]} 32. Kd2 {[%clk 00:03:05]}
{[%emt 00:00:27]} Nc5 {[%clk 00:02:38]} {[%emt 00:00:47]} 33. d4 {[%clk
00:03:03]} {[%emt 00:00:07]} exd4 {[%clk 00:02:41]} {[%emt 00:00:01]} 34. exd4
{[%clk 00:03:04]} {[%emt 00:00:03]} Nd7 {[%clk 00:02:31]} {[%emt 00:00:15]} 35.
Ra7 {[%clk 00:03:03]} {[%emt 00:00:06]} Ke6 {[%clk 00:01:56]} {[%emt 00:00:41]}
36. Rxb7 {[%clk 00:03:07]} {[%emt 00:00:01]} f5 {[%clk 00:01:31]} {[%emt
00:00:30]} 37. Ra7 {[%clk 00:03:08]} {[%emt 00:00:04]} g5 {[%clk 00:01:10]}
{[%emt 00:00:25]} 38. Rxa5 {[%clk 00:03:11]} {[%emt 00:00:01]} g4 {[%clk
00:01:02]} {[%emt 00:00:13]} 39. Ke3 {[%clk 00:03:15]} {[%emt 00:00:02]} Nb6
{[%clk 00:00:51]} {[%emt 00:00:16]} 40. Re5+ {[%clk 00:03:11]} {[%emt
00:00:09]} Kf6 {[%clk 00:00:54]} {[%emt 00:00:02]} 41. Rc5 {[%clk 00:03:13]}
{[%emt 00:00:03]} Nd5+ {[%clk 00:00:55]} {[%emt 00:00:04]} 42. Kf2 {[%clk
00:02:53]} {[%emt 00:00:25]} Ne7 {[%clk 00:00:57]} {[%emt 00:00:03]} 43. Kg3
{[%clk 00:02:49]} {[%emt 00:00:09]} Kg5 {[%clk 00:00:49]} {[%emt 00:00:14]} 44.
c4 {[%clk 00:02:45]} {[%emt 00:00:10]} Kf6 {[%clk 00:00:52]} {[%emt 00:00:01]}
45. Ra5 {[%clk 00:02:08]} {[%emt 00:00:42]} Kg5 {[%clk 00:00:31]} {[%emt
00:00:26]} 46. Ra7 {[%clk 00:01:06]} {[%emt 00:01:07]} f4+ {[%clk 00:00:25]}
{[%emt 00:00:10]} 47. Kf2 {[%clk 00:01:08]} {[%emt 00:00:03]} Nf5 {[%clk
00:00:28]} {[%emt 00:00:03]} 48. d5 {[%clk 00:00:59]} {[%emt 00:00:14]} cxd5
{[%clk 00:00:32]} {[%emt 00:00:01]} 49. c5 {[%clk 00:00:59]} {[%emt 00:00:04]}
g3+ {[%clk 00:00:28]} {[%emt 00:00:08]} 50. Kg1 {[%clk 00:01:00]} {[%emt
00:00:03]} f3 {[%clk 00:00:30]} {[%emt 00:00:05]} 51. c6 {[%clk 00:00:58]}
{[%emt 00:00:06]} f2+ {[%clk 00:00:31]} {[%emt 00:00:03]} 52. Kg2 {[%clk
00:00:57]} {[%emt 00:00:06]} Ne3+ {[%clk 00:00:35]} {[%emt 00:00:02]} 0-1

[Event "New Zealand Rapid Championship"]
[Site "Wellington"]
[Date "2023.01.12"]
[Round "9.11"]
[White "Yu, Zachary"]
[Black "McDougall, Euan"]
[Result "1/2-1/2"]
[TimeControl "25+5"]
[WhiteFideId "4311930"]
[BlackFideId "4304985"]
[WhiteElo "1675"]
[BlackElo "1875"]

1. d4 {[%clk 00:25:09]} g6 {[%clk 00:25:02]} {[%emt 00:00:08]} 2. c4 {[%clk
00:25:13]} Bg7 {[%clk 00:25:06]} {[%emt 00:00:01]} 3. Nc3 {[%clk 00:25:17]} c5
{[%clk 00:25:11]} {[%emt 00:00:01]} 4. d5 {[%clk 00:25:18]} {[%emt 00:00:03]}
Bxc3+ {[%clk 00:25:13]} {[%emt 00:00:03]} 5. bxc3 {[%clk 00:25:22]} f5 {[%clk
00:25:15]} {[%emt 00:00:03]} 6. Nf3 {[%clk 00:25:03]} {[%emt 00:00:24]} d6
{[%clk 00:25:07]} {[%emt 00:00:13]} 7. g3 {[%clk 00:24:09]} {[%emt 00:00:59]}
Qa5 {[%clk 00:24:29]} {[%emt 00:00:44]} 8. Bb2 {[%clk 00:23:43]} {[%emt
00:00:31]} Nd7 {[%clk 00:24:14]} {[%emt 00:00:20]} 9. Bg2 {[%clk 00:23:20]}
{[%emt 00:00:28]} Nb6 {[%clk 00:24:17]} {[%emt 00:00:02]} 10. Nd2 {[%clk
00:22:44]} {[%emt 00:00:41]} Na4 {[%clk 00:23:43]} {[%emt 00:00:39]} 11. Qc2
{[%clk 00:22:48]} Nxb2 {[%clk 00:23:12]} {[%emt 00:00:36]} 12. Qxb2 {[%clk
00:22:52]} {[%emt 00:00:02]} Nf6 {[%clk 00:23:13]} {[%emt 00:00:04]} 13. O-O
{[%clk 00:22:48]} {[%emt 00:00:08]} O-O {[%emt 00:00:33]} 14. Rae1 {[%emt
00:01:08]} Nd7 {[%emt 00:01:21]} 15. e4 {[%clk 00:21:24]} {[%emt 00:00:10]} Ne5
{[%clk 00:21:49]} {[%emt 00:00:02]} 16. Qc2 {[%emt 00:00:32]} fxe4 {[%clk
00:21:15]} {[%emt 00:00:08]} 17. Bxe4 {[%clk 00:21:14]} {[%emt 00:00:20]} Bh3
{[%clk 00:21:15]} {[%emt 00:00:03]} 18. Bg2 {[%emt 00:00:27]} Bf5 {[%emt
00:01:49]} 19. Be4 {[%clk 00:17:58]} {[%emt 00:05:04]} Bh3 {[%clk 00:16:10]}
1/2-1/2

[Event "New Zealand Rapid Championship"]
[Site "Wellington"]
[Date "2023.01.12"]
[Round "9.12"]
[White "Hwang, Ryan"]
[Black "Zhang, Kendrick Botong"]
[Result "0-1"]
[TimeControl "25+5"]
[BlackTitle "CM"]
[WhiteFideId "4313313"]
[BlackFideId "4307704"]
[WhiteElo "1402"]
[BlackElo "1870"]

1. e4 {[%clk 00:25:09]} {[%emt 00:00:01]} c5 {[%clk 00:25:06]} {[%emt
00:00:03]} 2. Nf3 {[%clk 00:25:12]} {[%emt 00:00:03]} e6 {[%clk 00:25:09]}
{[%emt 00:00:02]} 3. d4 {[%clk 00:25:10]} {[%emt 00:00:07]} cxd4 {[%clk
00:25:13]} {[%emt 00:00:01]} 4. Nxd4 {[%clk 00:25:11]} {[%emt 00:00:02]} Nc6
{[%clk 00:25:17]} {[%emt 00:00:02]} 5. Nc3 {[%clk 00:25:07]} {[%emt 00:00:09]}
Qc7 {[%clk 00:25:21]} {[%emt 00:00:01]} 6. Be3 {[%clk 00:24:56]} {[%emt
00:00:16]} a6 {[%clk 00:25:21]} {[%emt 00:00:04]} 7. Be2 {[%clk 00:24:54]}
{[%emt 00:00:07]} Nf6 {[%clk 00:25:24]} {[%emt 00:00:02]} 8. a3 {[%clk
00:24:54]} {[%emt 00:00:06]} Be7 {[%clk 00:25:19]} {[%emt 00:00:09]} 9. O-O
{[%clk 00:24:55]} {[%emt 00:00:05]} O-O {[%clk 00:25:20]} {[%emt 00:00:03]} 10.
Re1 {[%clk 00:24:58]} {[%emt 00:00:02]} b5 {[%clk 00:24:51]} {[%emt 00:00:34]}
11. Qd2 {[%clk 00:24:08]} {[%emt 00:00:54]} Bb7 {[%clk 00:24:48]} {[%emt
00:00:09]} 12. Bf3 {[%clk 00:23:28]} {[%emt 00:00:45]} d6 {[%clk 00:22:49]}
{[%emt 00:02:04]} 13. Rad1 {[%clk 00:22:50]} {[%emt 00:00:43]} Ne5 {[%clk
00:22:33]} {[%emt 00:00:21]} 14. Bg5 {[%clk 00:21:49]} {[%emt 00:01:04]} Nc4
{[%clk 00:22:03]} {[%emt 00:00:34]} 15. Qc1 {[%clk 00:21:14]} {[%emt 00:00:41]}
Nxa3 {[%clk 00:20:35]} {[%emt 00:01:34]} 16. bxa3 {[%clk 00:19:45]} {[%emt
00:01:33]} Qxc3 {[%clk 00:20:37]} {[%emt 00:00:03]} 17. Rd3 {[%clk 00:19:44]}
{[%emt 00:00:06]} Qc7 {[%clk 00:20:35]} {[%emt 00:00:07]} 18. Ree3 {[%clk
00:19:09]} {[%emt 00:00:39]} Ne8 {[%clk 00:17:34]} {[%emt 00:03:07]} 19. Rc3
{[%clk 00:17:35]} {[%emt 00:01:39]} Qd7 {[%clk 00:16:45]} {[%emt 00:00:54]} 20.
Red3 {[%clk 00:16:04]} {[%emt 00:01:36]} Bxg5 {[%clk 00:15:39]} {[%emt
00:01:11]} 21. Qxg5 {[%clk 00:16:05]} {[%emt 00:00:03]} h6 {[%clk 00:14:51]}
{[%emt 00:00:54]} 22. Qg3 {[%clk 00:14:35]} {[%emt 00:01:34]} Qe7 {[%clk
00:13:18]} {[%emt 00:01:39]} 23. Re3 {[%clk 00:12:51]} {[%emt 00:01:49]} Nf6
{[%clk 00:11:27]} {[%emt 00:01:56]} 24. e5 {[%clk 00:11:55]} {[%emt 00:01:02]}
dxe5 {[%clk 00:11:02]} {[%emt 00:00:30]} 25. Rxe5 {[%clk 00:09:32]} {[%emt
00:02:27]} Qd7 {[%clk 00:09:03]} {[%emt 00:02:04]} 26. Rd3 {[%clk 00:07:16]}
{[%emt 00:02:20]} Qc7 {[%clk 00:08:11]} {[%emt 00:00:56]} 27. Bxb7 {[%clk
00:05:46]} {[%emt 00:01:36]} Qxb7 {[%clk 00:08:14]} {[%emt 00:00:02]} 28. Rf3
{[%clk 00:04:33]} {[%emt 00:01:18]} Ne4 {[%clk 00:06:15]} {[%emt 00:02:05]} 29.
Qf4 {[%clk 00:03:42]} {[%emt 00:00:55]} Ng5 {[%clk 00:05:51]} {[%emt 00:00:30]}
30. Rg3 {[%clk 00:02:46]} {[%emt 00:01:01]} f6 {[%clk 00:05:17]} {[%emt
00:00:39]} 31. Rxe6 {[%clk 00:00:46]} {[%emt 00:02:05]} Nxe6 {[%clk 00:05:09]}
{[%emt 00:00:13]} 32. Nxe6 {[%clk 00:00:50]} Rae8 {[%clk 00:04:46]} {[%emt
00:00:29]} 33. Qe3 {[%clk 00:00:19]} {[%emt 00:00:36]} Qd7 {[%clk 00:04:34]}
{[%emt 00:00:18]} 34. Qxh6 {[%clk 00:00:06]} {[%emt 00:00:17]} Qd1# {[%clk
00:04:37]} {[%emt 00:00:02]} 0-1

[Event "New Zealand Rapid Championship"]
[Site "Wellington"]
[Date "2023.01.12"]
[Round "9.13"]
[White "Wells, Clinton A"]
[Black "Tang, Hao"]
[Result "0-1"]
[TimeControl "25+5"]
[WhiteFideId "4301188"]
[BlackFideId "4311280"]
[WhiteElo "1785"]
[BlackElo "1846"]

1. c4 {[%clk 00:25:09]} {[%emt 00:00:01]} Nf6 {[%clk 00:25:06]} {[%emt
00:00:04]} 2. Nc3 {[%clk 00:24:55]} {[%emt 00:00:19]} c5 {[%clk 00:25:05]}
{[%emt 00:00:06]} 3. Nf3 {[%clk 00:24:06]} {[%emt 00:00:54]} d5 {[%clk
00:24:54]} {[%emt 00:00:17]} 4. d4 {[%clk 00:22:26]} {[%emt 00:01:45]} cxd4
{[%clk 00:23:25]} {[%emt 00:01:34]} 5. Nxd4 {[%clk 00:22:25]} {[%emt 00:00:06]}
e5 {[%clk 00:23:05]} {[%emt 00:00:24]} 6. Nf3 {[%clk 00:21:26]} {[%emt
00:01:05]} e4 {[%clk 00:19:07]} {[%emt 00:04:04]} 7. Nd4 {[%clk 00:20:58]}
{[%emt 00:00:32]} Bc5 {[%clk 00:17:43]} {[%emt 00:01:25]} 8. e3 {[%clk
00:16:22]} {[%emt 00:04:46]} O-O {[%clk 00:16:53]} {[%emt 00:00:53]} 9. cxd5
{[%clk 00:15:32]} {[%emt 00:00:57]} Re8 {[%clk 00:16:11]} {[%emt 00:00:45]} 10.
Bb5 {[%clk 00:14:50]} {[%emt 00:00:48]} Re5 {[%clk 00:15:22]} {[%emt 00:00:54]}
11. a3 {[%clk 00:13:47]} {[%emt 00:01:09]} Nxd5 {[%clk 00:13:46]} {[%emt
00:01:40]} 12. Na4 {[%clk 00:11:42]} {[%emt 00:02:12]} Be7 {[%clk 00:10:51]}
{[%emt 00:02:59]} 13. Bd2 {[%clk 00:10:23]} {[%emt 00:01:24]} Rg5 {[%clk
00:09:59]} {[%emt 00:00:56]} 14. Bf1 {[%clk 00:09:39]} {[%emt 00:00:48]} Nd7
{[%clk 00:09:14]} {[%emt 00:00:50]} 15. g3 {[%clk 00:07:55]} {[%emt 00:01:50]}
Ne5 {[%clk 00:08:38]} {[%emt 00:00:40]} 16. Qc2 {[%clk 00:07:10]} {[%emt
00:00:51]} Nf6 {[%clk 00:07:46]} {[%emt 00:00:57]} 17. Be2 {[%clk 00:06:49]}
{[%emt 00:00:26]} Bg4 {[%clk 00:07:32]} {[%emt 00:00:18]} 18. h3 {[%clk
00:06:08]} {[%emt 00:00:46]} Bxe2 {[%clk 00:07:17]} {[%emt 00:00:21]} 19. Kxe2
{[%clk 00:06:06]} {[%emt 00:00:07]} Rc8 {[%clk 00:06:22]} {[%emt 00:01:00]} 20.
Qb3 {[%clk 00:05:59]} {[%emt 00:00:12]} Nc4 {[%clk 00:05:02]} {[%emt 00:01:24]}
21. Bb4 {[%clk 00:05:21]} {[%emt 00:00:43]} Re5 {[%clk 00:03:34]} {[%emt
00:01:32]} 22. Rac1 {[%clk 00:03:26]} {[%emt 00:02:01]} b5 {[%clk 00:03:04]}
{[%emt 00:00:36]} 23. Bxe7 {[%clk 00:02:01]} {[%emt 00:01:30]} bxa4 {[%clk
00:01:35]} {[%emt 00:01:35]} 24. Bxd8 {[%clk 00:02:04]} {[%emt 00:00:01]} axb3
{[%clk 00:01:38]} {[%emt 00:00:01]} 25. Bxf6 {[%clk 00:02:06]} {[%emt
00:00:03]} gxf6 {[%clk 00:01:35]} {[%emt 00:00:09]} 26. Nxb3 {[%clk 00:01:51]}
{[%emt 00:00:20]} Rb5 {[%clk 00:01:17]} {[%emt 00:00:23]} 27. Rc3 {[%clk
00:01:43]} {[%emt 00:00:13]} Rcb8 {[%clk 00:01:20]} {[%emt 00:00:02]} 28. Rxc4
{[%clk 00:01:39]} {[%emt 00:00:09]} Rxb3 {[%clk 00:01:24]} {[%emt 00:00:01]} 29.
Rxe4 {[%clk 00:00:49]} {[%emt 00:00:55]} Rxb2+ {[%clk 00:01:25]} {[%emt
00:00:04]} 30. Kf3 {[%clk 00:00:53]} {[%emt 00:00:01]} R8b5 {[%clk 00:01:15]}
{[%emt 00:00:14]} 31. Rc1 {[%clk 00:00:36]} {[%emt 00:00:22]} Ra2 {[%clk
00:01:03]} {[%emt 00:00:17]} 32. a4 {[%clk 00:00:32]} {[%emt 00:00:10]} Rbb2
{[%clk 00:01:00]} {[%emt 00:00:08]} 33. Rc8+ {[%clk 00:00:13]} {[%emt
00:00:23]} Kg7 {[%clk 00:01:04]} {[%emt 00:00:02]} 34. Rg4+ {[%clk 00:00:18]}
Kh6 {[%clk 00:01:05]} {[%emt 00:00:02]} 35. Rcg8 {[%clk 00:00:06]} {[%emt
00:00:18]} Rxf2+ {[%clk 00:01:06]} {[%emt 00:00:03]} 36. Ke4 {[%clk 00:00:10]}
{[%emt 00:00:02]} f5+ {[%clk 00:01:02]} {[%emt 00:00:09]} 37. Ke5 {[%clk
00:00:10]} {[%emt 00:00:05]} fxg4 {[%clk 00:01:04]} {[%emt 00:00:03]} 38. hxg4
{[%clk 00:00:09]} {[%emt 00:00:06]} Rxa4 {[%clk 00:00:58]} {[%emt 00:00:10]} 39.
g5+ {[%clk 00:00:07]} {[%emt 00:00:06]} Kh5 {[%clk 00:01:02]} {[%emt 00:00:02]}
40. Rg7 {[%clk 00:00:08]} {[%emt 00:00:05]} Ra5+ {[%clk 00:00:53]} {[%emt
00:00:14]} 41. Kd6 {[%clk 00:00:07]} {[%emt 00:00:06]} Rxg5 {[%clk 00:00:51]}
{[%emt 00:00:06]} 42. Rxh7+ {[%clk 00:00:08]} {[%emt 00:00:05]} Kg4 {[%emt
00:00:06]} 43. Rh4+ {[%clk 00:00:10]} Kxg3 {[%clk 00:00:53]} {[%emt 00:00:04]}
0-1

[Event "New Zealand Rapid Championship"]
[Site "Wellington"]
[Date "2023.01.12"]
[Round "9.14"]
[White "Langford, Joshua"]
[Black "Young, Cohen"]
[Result "1-0"]
[TimeControl "25+5"]
[WhiteFideId "4314557"]
[BlackFideId "4317440"]
[WhiteElo "1843"]
[BlackElo "1777"]

1. e4 {[%clk 00:25:07]} {[%emt 00:00:03]} c5 {[%clk 00:25:10]} 2. Nf3 {[%clk
00:25:10]} {[%emt 00:00:01]} d6 {[%clk 00:25:15]} 3. d4 {[%clk 00:25:10]}
{[%emt 00:00:06]} cxd4 {[%clk 00:25:19]} 4. Nxd4 {[%clk 00:25:14]} Nf6 {[%clk
00:25:23]} 5. Nc3 {[%clk 00:25:18]} {[%emt 00:00:01]} Nc6 {[%clk 00:25:27]} 6.
Bc4 {[%clk 00:25:12]} {[%emt 00:00:11]} Qb6 {[%clk 00:25:31]} {[%emt 00:00:01]}
7. Nb3 {[%clk 00:25:16]} {[%emt 00:00:01]} e6 {[%clk 00:25:32]} {[%emt
00:00:04]} 8. Bf4 {[%clk 00:25:19]} {[%emt 00:00:02]} Ne5 {[%clk 00:25:37]} 9.
Be2 {[%clk 00:25:19]} {[%emt 00:00:04]} Bd7 {[%clk 00:25:21]} {[%emt 00:00:21]}
10. Qd2 {[%clk 00:25:07]} {[%emt 00:00:17]} a6 {[%clk 00:23:56]} {[%emt
00:01:30]} 11. O-O-O {[%clk 00:25:09]} {[%emt 00:00:03]} Be7 {[%clk 00:23:45]}
{[%emt 00:00:15]} 12. g4 {[%clk 00:24:20]} {[%emt 00:00:54]} Nfxg4 {[%clk
00:14:48]} {[%emt 00:09:02]} 13. Rhg1 {[%clk 00:23:53]} {[%emt 00:00:32]} g5
{[%clk 00:13:02]} {[%emt 00:01:52]} 14. Bxg5 {[%clk 00:20:59]} {[%emt
00:02:59]} Bxg5 {[%clk 00:08:37]} {[%emt 00:04:30]} 15. Qxg5 {[%clk 00:21:03]}
h6 {[%clk 00:07:50]} {[%emt 00:00:52]} 16. Qg7 {[%clk 00:17:57]} {[%emt
00:03:11]} Ke7 {[%clk 00:07:45]} {[%emt 00:00:09]} 17. Rxg4 {[%clk 00:17:45]}
{[%emt 00:00:17]} Nxg4 {[%clk 00:06:55]} {[%emt 00:00:56]} 18. Qxg4 {[%clk
00:17:48]} {[%emt 00:00:01]} Qxf2 {[%clk 00:06:35]} {[%emt 00:00:24]} 19. Rf1
{[%clk 00:15:36]} {[%emt 00:02:17]} Qxh2 {[%clk 00:05:40]} {[%emt 00:01:01]} 20.
Qg7 {[%clk 00:15:38]} {[%emt 00:00:02]} Raf8 {[%clk 00:05:38]} {[%emt
00:00:08]} 21. Qf6+ {[%clk 00:14:06]} {[%emt 00:01:38]} Ke8 {[%clk 00:05:41]}
{[%emt 00:00:01]} 22. Nd4 {[%clk 00:13:42]} {[%emt 00:00:29]} Qe5 {[%clk
00:05:15]} {[%emt 00:00:31]} 23. Qf2 {[%clk 00:13:45]} {[%emt 00:00:03]} h5
{[%clk 00:04:45]} {[%emt 00:00:35]} 24. Nf3 {[%clk 00:12:42]} {[%emt 00:01:08]}
Qf4+ {[%clk 00:04:46]} {[%emt 00:00:04]} 25. Kb1 {[%clk 00:12:46]} {[%emt
00:00:01]} h4 {[%clk 00:04:28]} {[%emt 00:00:23]} 26. e5 {[%clk 00:12:38]}
{[%emt 00:00:12]} dxe5 {[%clk 00:03:43]} {[%emt 00:00:50]} 27. Rd1 {[%clk
00:11:58]} {[%emt 00:00:45]} Bc6 {[%clk 00:03:37]} {[%emt 00:00:11]} 28. Qc5
{[%clk 00:09:41]} {[%emt 00:02:22]} Bxf3 {[%clk 00:02:13]} {[%emt 00:01:29]} 29.
Qd6 {[%clk 00:09:24]} {[%emt 00:00:22]} Qd4 {[%clk 00:01:57]} {[%emt 00:00:20]}
30. Rxd4 {[%clk 00:09:23]} {[%emt 00:00:06]} exd4 {[%clk 00:02:01]} {[%emt
00:00:01]} 31. Bxf3 {[%clk 00:08:44]} {[%emt 00:00:44]} dxc3 {[%clk 00:01:58]}
{[%emt 00:00:08]} 32. Bxb7 {[%clk 00:08:40]} {[%emt 00:00:08]} f5 {[%clk
00:01:47]} {[%emt 00:00:16]} 33. Qxe6+ {[%clk 00:08:34]} {[%emt 00:00:11]} Kd8
{[%clk 00:01:49]} {[%emt 00:00:05]} 34. Bc6 {[%clk 00:07:51]} {[%emt 00:00:46]}
Rh7 {[%clk 00:01:52]} {[%emt 00:00:02]} 35. Qd6+ {[%clk 00:07:53]} {[%emt
00:00:03]} 1-0